[Event "Reykjavik Open 2024"]
[Site "Reykjavik"]
[Date "2024.03.16"]
[Round "3.40"]
[White "Saine, Zachary"]
[Black "Briem, Gudrun Fanney"]
[Result "1-0"]
[ECO "B12"]
[WhiteElo "2010"]
[BlackElo "1806"]
[Annotator "RC"]
[PlyCount "123"]
[EventDate "2024.03.12"]
[EventCountry "ISL"]
[SourceTitle "playchess.com"]
[Source "ChessBase"]
[SourceQuality "1"]
[TimeControl "40/5400+30:1800+30"]

1. e4 {[%emt 0:00:14]} c6 {[%emt 0:00:08]} 2. d4 {[%emt 0:00:28]} d5 {[%emt 0:00:13]} 3. e5 {[%emt 0:00:09]} Bf5 {[%emt 0:00:23]} 4. Ne2 {[%emt 0:00:21]} e6 {[%emt 0:02:00]} 5. Ng3 {[%emt 0:00:07]} Bg6 {[%emt 0:00:24]} 6. h4 {[%emt 0:00:07]} h5 {[%emt 0:00:18]} 7. Bd3 {[%emt 0:01:30]} Bxd3 {[%emt 0:05:27]} 8. cxd3 {[%emt 0:00:25]} g6 {[%emt 0:03:08]} 9. Nd2 {[%emt 0:01:21]} Qb6 {[%emt 0:18:43]} 10. Nf3 {[%emt 0:09:20]} Bh6 {[%emt 0:05:03]} 11. O-O {[%emt 0:02:26]} Nd7 {[%emt 0:03:54]} 12. Be3 {[%emt 0:16:20]} Kf8 {[%emt 0:08:12]} 13. Qa4 {[%emt 0:06:21]} Kg7 {[%emt 0:07:09]} 14. Qa3 {[%emt 0:00:38]} Re8 {[%emt 0:19:36]} 15. Qd6 {[%emt 0:06:30]} Nb8 {[%emt 0:07:11]} 16. a4 {[%emt 0:02:18]} Na6 {[%emt 0:08:22]} 17. b4 {[%emt 0:12:51]} Rd8 {[%emt 0:05:31]} 18. a5 {[%emt 0:01:06]} Qc7 {[%emt 0:00:07]} 19. Qxc7 {[%emt 0:01:02]} Nxc7 {[%emt 0:00:04]} 20. Nd2 {[%emt 0:03:38]} Ne7 {[%emt 0:01:51]} 21. Nb3 {[%emt 0:05:55]} a6 {[%emt 0:01:52]} 22. Nc5 {[%emt 0:04:37]} Rb8 {[%emt 0:00:24]} 23. Kh2 {[%emt 0:01:54]} Rhd8 {[%emt 0:00:38]} 24. Rfc1 {[%emt 0:07:34]} Nf5 {[%emt 0:00:52]} 25. Nxf5+ {[%emt 0:01:43]} exf5 {[%emt 0:00:16]} 26. Bg5 {[%emt 0:11:50]} Bxg5 {[%emt 0:00:15]} 27. hxg5 {[%emt 0:00:04]} Ne6 {[%emt 0:00:55]} 28. Nxe6+ {[%emt 0:01:47]} fxe6 {[%emt 0:00:05]} 29. Kg3 {[%emt 0:01:13]} Ra8 {[%emt 0:00:32]} 30. Kf4 {[%emt 0:00:19]} Rf8 {[%emt 0:00:42]} 31. f3 {[%emt 0:00:51]} Rf7 {[%emt 0:00:20]} 32. g3 {[%emt 0:00:56]} Rff8 {[%emt 0:00:37]} 33. Ke3 {[%emt 0:00:11]} Rh8 {[%emt 0:00:46]} 34. b5 {[%emt 0:00:46]} axb5 {[%emt 0:00:14]} 35. a6 {[%emt 0:00:05]} Rxa6 {[%emt 0:00:49]} 36. Rxa6 {[%emt 0:00:06]} bxa6 {[%emt 0:00:02]} 37. Rxc6 {[%emt 0:00:05]} Ra8 {[%emt 0:00:32]} 38. Rxe6 {[%emt 0:00:30]} b4 {[%emt 0:00:34]} 39. Rb6 {[%emt 0:00:05]} a5 {[%emt 0:00:14]} 40. Rb7+ {[%emt 0:00:29]} Kf8 {[%emt 0:00:15]} 41. Kd2 {[%emt 0:30:07]} a4 {[%emt 0:30:51]} 42. Rxb4 {[%emt 0:00:13]} a3 {[%emt 0:00:05]} 43. Rb1 {[%emt 0:00:03]} a2 {[%emt 0:00:25]} 44. Ra1 {[%emt 0:00:03]} Ke7 {[%emt 0:00:21]} 45. f4 {[%emt 0:00:09]} Ra3 {[%emt 0:01:09]} 46. Kc2 {[%emt 0:00:16]} Ra4 {[%emt 0:00:12]} 47. Kb3 {[%emt 0:00:00]} Rxd4 {[%emt 0:00:00]} 48. Rxa2 {[%emt 0:00:00]} Rxd3+ {[%emt 0:00:00]} 49. Kb4 {[%emt 0:00:00]} Rxg3 {[%emt 0:00:00]} 50. Ra7+ {[%emt 0:00:00]} Ke6 {[%emt 0:01:02]} 51. Ra6+ {[%emt 0:00:00]} Kf7 {[%emt 0:00:38]} 52. Kc5 {[%emt 0:00:00]} h4 {[%emt 0:01:55]} 53. Kd6 {[%emt 0:00:00]} Re3 {[%emt 0:01:04]} 54. Ra7+ {[%emt 0:00:00]} Kf8 {[%emt 0:00:32]} 55. Ke6 {[%emt 0:00:00]} h3 {[%emt 0:00:32]} 56. Kf6 {[%emt 0:00:00]} Kg8 {[%emt 0:00:30]} 57. Kxg6 {[%emt 0:00:00]} Kf8 {[%emt 0:00:05]} 58. Kf6 {[%emt 0:00:00]} Ke8 {[%emt 0:00:27]} 59. e6 {[%emt 0:00:00]} Kd8 {[%emt 0:00:25]} 60. e7+ {[%emt 0:00:00]} Ke8 {[%emt 0:00:36]} 61. Ra8+ {[%emt 0:00:00]} Kd7 {[%emt 0:00:12]} 62. Rd8+ {[%emt 0:00:00]} 1-0

[Event "Reykjavik Open 2024"]
[Site "Reykjavik"]
[Date "2024.03.16"]
[Round "3.41"]
[White "Suleymenov, Alisher"]
[Black "Dimitrijeski, Boris"]
[Result "1-0"]
[ECO "E14"]
[WhiteElo "2506"]
[BlackElo "2183"]
[Annotator "TA"]
[PlyCount "153"]
[EventDate "2024.03.12"]
[EventCountry "ISL"]
[SourceTitle "playchess.com"]
[Source "ChessBase"]
[SourceQuality "1"]
[TimeControl "40/5400+30:1800+30"]

{[%evp 19,153,0,7,8,19,0,0,0,0,0,0,0,0,0,0,0,0,0,0,-21,0,0,0,0,4,-14,-12,-20,-16,-15,-18,-47,-18,-25,-20,-85,-19,-28,0,0,0,-14,-1,-35,-38,-29,-29,-132,-7,-39,-18,-68,-63,-59,-73,-76,-79,-74,-34,-57,-72,-52,134,137,129,127,153,156,150,154,136,148,221,234,246,247,244,241,233,214,267,268,267,268,267,276,276,276,260,241,241,241,241,241,240,240,241,241,241,240,235,272,295,295,296,296,296,289,292,289,280,289,296,281,301,278,283,234,318,306,326,313,306,281,361,353,348,233,548,506,477,477,456,498,462,453]} 1. d4 {[%emt 0:00:03]} d5 {[%emt 0:00:25]} 2. c4 {[%emt 0:00:08]} c6 {[%emt 0:00:09]} 3. Nf3 {[%emt 0:00:06]} Nf6 {[%emt 0:00:06]} 4. Nc3 {[%emt 0:00:03]} e6 {[%emt 0:00:14]} 5. e3 {[%emt 0:00:06]} Nbd7 {[%emt 0:00:13]} 6. Be2 {[%emt 0:00:05]} Bd6 {[%emt 0:01:16]} 7. O-O {[%emt 0:00:07]} O-O {[%emt 0:00:42]} 8. b3 {[%emt 0:00:03]} b6 {[%emt 0:00:46]} 9. Bb2 {[%emt 0:00:04]} Bb7 {[%emt 0:00:30]} 10. Bd3 {[%emt 0:00:05]} c5 {[%emt 0:02:50]} 11. cxd5 {[%emt 0:00:08]} Nxd5 {[%emt 0:00:59]} 12. Nxd5 {[%emt 0:12:44]} Bxd5 {[%emt 0:00:33]} 13. e4 {[%emt 0:09:18] The position is equal.} Bb7 {[%emt 0:00:09]} 14. d5 {[%emt 0:00:06]} exd5 {[%emt 0:00:11]} 15. exd5 {[%emt 0:00:04]} Be7 {[%emt 0:00:11][%cal Oe7f6]} 16. Qc2 {[%emt 0:04:31]} h6 {[%emt 0:00:09]} 17. Rad1 {[%emt 0:03:10][%cal Od5d6]} Bf6 $1 {[%emt 0:02:07]} (17... Nf6 $6 18. Rfe1 $16) 18. Bc1 {[%emt 0:12:06]} Ne5 {[%emt 0:09:18]} 19. Bh7+ {[%emt 0:00:58]} Kh8 {[%emt 0:00:06]} 20. Be4 {[%emt 0:00:04]} Nxf3+ {[%emt 0:07:18]} 21. Bxf3 {[%emt 0:00:05]} Qd7 {[%emt 0:10:48]} 22. Be3 {[%emt 0:03:16]} Rad8 {[%emt 0:04:56]} 23. g3 {[%emt 0:05:37]} Rfe8 {[%emt 0:05:07]} 24. Rd2 {[%emt 0:03:36]} Kg8 {[%emt 0:04:43]} 25. h4 {[%emt 0:04:25]} Be5 {[%emt 0:10:30][%cal Oe5g3]} 26. Kg2 {[%emt 0:04:15]} Qd6 {[%emt 0:15:20][%cal Oe5g3]} 27. Re1 {[%emt 0:00:20]} (27. Rc1 $11 {remains equal.}) 27... Qf6 {[%emt 0:01:45]} (27... Bd4 $1 $17 28. Qc4 Qd7 (28... Bxd5 29. Qxd5 Qxd5 30. Bxd5 $17)) 28. Red1 {[%emt 0:03:59]} Bc3 {[%emt 0:02:12]} 29. Rd3 {[%emt 0:00:46]} Be5 {[%emt 0:00:06]} 30. Qc4 {[%emt 0:07:52] Prevents Ba6} Bc8 {[%emt 0:03:07]} 31. R3d2 {[%emt 0:01:55]} (31. Bf4 {simplifies} Bxf4 32. Qxf4 Qxf4 33. gxf4 Rd6 34. Re3) 31... Bd6 {[%emt 0:06:25]} 32. Qe2 {[%emt 0:07:21]} Bf5 {[%emt 0:02:41]} 33. Qc4 {[%emt 0:05:12]} (33. Bg4 $11) 33... Be5 {[%emt 0:05:05]} (33... Bh3+ 34. Kxh3 Qxf3 35. Qg4 Qxg4+ 36. Kxg4 $11) (33... Rxe3 $1 $17 34. fxe3 Qg6) 34. Bf4 {[%emt 0:05:18]} Bd4 {[%emt 0:00:27] ...g5 is the strong threat.} 35. Bc7 {[%emt 0:02:49]} ({Better is} 35. h5 $11) 35... Rd7 $15 {[%emt 0:01:56]} 36. d6 $1 {[%emt 0:01:36] [#]} Bh3+ $1 {[%emt 0:04:36]} 37. Kxh3 {[%emt 0:00:10]} Qxf3 {[%emt 0:00:11]} 38. Qf1 {[%emt 0:01:27]} Re6 {[%emt 0:00:48]} 39. Qg2 {[%emt 0:01:12]} Qf5+ {[%emt 0:00:13]} 40. Kh2 {[%emt 0:00:10]} Rexd6 $2 {[%emt 0:00:49]} (40... g5 $15 {keeps the upper hand.} 41. Qh3 Qe4) 41. Bxd6 $16 {[%emt 0:31:29] White now steadily converts the win.} Rxd6 {[%emt 0:30:28]} 42. Re2 {[%emt 0:00:00]} Rf6 {[%emt 0:00:00]} 43. Qa8+ {[%emt 0:00:00]} Kh7 {[%emt 0:00:00] [#]} 44. Kg2 $1 {[%emt 0:00:00]} (44. Qxa7 $2 Bxf2 45. Qa8 Rg6 46. Rxf2 Qxf2+ 47. Qg2 Qe3 $17) 44... g6 {[%emt 0:00:00]} 45. Rdd2 {[%emt 0:00:00]} (45. Qxa7 Qf3+ (45... Bxf2 46. Qb7 $11) 46. Kh3 Qxe2 47. f4 g5 (47... Qxd1 48. Qb7 Qf1+ 49. Qg2 Qd3 50. h5 Rxf4 51. hxg6+ Kxg6 52. Qd5 Rf2 53. Qc6+ Bf6 54. Qg2 Qe2 55. Qxf2 Qxf2 56. a4 Be5 57. Kh4 Qxg3#) 48. hxg5 hxg5 (48... Qxd1 49. Qb7 Qh5+ 50. Kg2 Qe2+ 51. Kh3 hxg5 52. Qe4+ Qxe4 53. fxg5 Rf2 54. a4 Qe6+ 55. g4 Qxb3+ 56. Kh4 Rh2#) (48... Qxd1 49. Qb7 hxg5 50. Qe4+ Kg7 51. fxg5 Rf1 52. Kg2 Re1 53. Qxe1 Qxe1 54. Kh3 Qf2 55. Kh4 Kg6 56. Kh3 Be5 57. Kh4 Qxg3#)) 45... h5 {[%emt 0:00:00] [#]} (45... Kg7 $16 46. Re8 (46. Qxa7 Qd5+ 47. Kg1 g5 $11) 46... Re6) 46. Re8 $1 $18 {[%emt 0:00:00] White threatens Rh8+ and mate. Active counter play!} (46. Qxa7 Bc3 47. Rc2 Qd5+ (47... Qf3+ 48. Kh2 $16) 48. Kh2 Bd4) 46... Rd6 {[%emt 0:00:00] [#]} 47. Rh8+ $3 {[%emt 0:00:00][%mdl 512]} Bxh8 {[%emt 0:00:00]} 48. Rxd6 {[%emt 0:00:00][%mdl 4096] Endgame. KQR-KQB} Be5 {[%emt 0:00:00]} 49. Rd8 {[%emt 0:00:00][%cal Oa8d5]} Kg7 {[%emt 0:00:00]} 50. Rg8+ {[%emt 0:00:00]} ({Worse is} 50. Qxa7 Qe4+ 51. Kf1 Qh1+ 52. Ke2 Qe4+ 53. Kf1 Qh1+ 54. Ke2 Bc3 $11) 50... Kh7 {[%emt 0:00:00]} 51. Re8 {[%emt 0:00:00][%cal Oa8d5] Hoping for Qd5!} Bd4 {[%emt 0:00:00]} 52. Qf3 {[%emt 0:00:00]} (52. Qxa7 {is a self mate.} Qxf2+ 53. Kh3 Qf1+ 54. Kh2 Qg1+ 55. Kh3 Qh1#) 52... Qd7 {[%emt 0:00:00]} 53. Rb8 {[%emt 0:00:00][%cal Be8b8,Bb8b7,Bb7a7][%mdl 32] Rb7 would now be deadly.} Kg7 {[%emt 0:00:00]} 54. Rb7 {[%emt 0:00:00]} Qe6 {[%emt 0:00:00]} 55. Rxa7 {[%emt 0:00:00]} b5 {[%emt 0:00:00][%cal Bb6b5,Bb5b4][%mdl 32]} 56. Rc7 {[%emt 0:00:16] Threatens to win with a3.} b4 {[%emt 0:00:00]} 57. Kf1 {[%emt 0:00:14]} Qh3+ {[%emt 0:00:00]} 58. Kg1 {[%emt 0:00:04]} Qe6 {[%emt 0:00:00]} 59. Kg2 {[%emt 0:00:04]} Kg8 {[%emt 0:00:00]} 60. Rc6 {[%emt 0:02:55]} Qd7 {[%emt 0:00:00]} 61. Qe4 {[%emt 0:01:12]} Kg7 {[%emt 0:00:17]} 62. Rb6 {[%emt 0:01:09]} Qd8 {[%emt 0:01:14]} 63. Ra6 {[%emt 0:04:45]} Qd7 {[%emt 0:01:41]} 64. a4 {[%emt 0:02:51]} bxa3 {[%emt 0:00:15]} 65. Rxa3 {[%emt 0:00:03]} Qd6 {[%emt 0:01:40]} 66. Ra2 {[%emt 0:00:18]} Qf6 {[%emt 0:01:54]} 67. Rd2 {[%emt 0:00:27]} Qb6 {[%emt 0:02:40]} 68. Rd3 {[%emt 0:00:18]} Bf6 {[%emt 0:01:18]} 69. Qd5 {[%emt 0:00:27]} Qc7 {[%emt 0:01:04]} 70. Rf3 {[%emt 0:00:23]} Qb6 {[%emt 0:00:37]} 71. Rf4 {[%emt 0:00:06]} Qa7 {[%emt 0:01:20]} 72. Rc4 {[%emt 0:00:39]} Be7 {[%emt 0:01:27]} 73. Qe5+ {[%emt 0:00:05]} Kg8 $2 {[%emt 0:00:16]} (73... Bf6 74. Qd5 (74. Qxc5 Qb7+ 75. Qc6 Qxb3 $16) 74... Be7) 74. Re4 {[%emt 0:00:36] White is clearly winning.} Bf8 {[%emt 0:00:23]} 75. Qd5 {[%emt 0:00:04] Repels Qb7} Kg7 {[%emt 0:00:30]} 76. Re8 {[%emt 0:00:17]} Qc7 {[%emt 0:03:01]} 77. Rd8 {Weighted Error Value: White=0.11 (very precise) /Black=0.19 (very precise) .  Mistake:       	White=3     	Black=5      Inaccurate:     	White=4     	Black=4      OK:         	White=32    	Black=20     Best:        	White=3     	Black=9      Strong:       	White=2     	Black=1      Brilliant:      	---       	Black=1} 1-0

[Event "Reykjavik Open 2024"]
[Site "Reykjavik"]
[Date "2024.03.16"]
[Round "3.42"]
[White "Gronn, Embla Ekeland"]
[Black "Prado, Alexandra"]
[Result "1-0"]
[ECO "E62"]
[WhiteElo "1684"]
[BlackElo "1877"]
[Annotator "NA RC"]
[PlyCount "87"]
[EventDate "2024.03.12"]
[EventCountry "ISL"]
[SourceTitle "playchess.com"]
[Source "ChessBase"]
[SourceQuality "1"]
[TimeControl "40/5400+30:1800+30"]

1. Nf3 {[%emt 0:00:07]} Nf6 {[%emt 0:01:42]} 2. c4 {[%emt 0:00:08]} g6 {[%emt 0:01:05]} 3. g3 {[%emt 0:00:31]} Bg7 {[%emt 0:00:10]} 4. Bg2 {[%emt 0:00:11]} O-O {[%emt 0:00:09]} 5. O-O {[%emt 0:00:12]} d6 {[%emt 0:00:25]} 6. Nc3 {[%emt 0:01:57]} c6 {[%emt 0:03:34]} 7. d4 {[%emt 0:04:09]} Bf5 {[%emt 0:04:32]} 8. Qb3 {[%emt 0:05:17]} Qc8 {[%emt 0:01:27]} 9. Bf4 {[%emt 0:02:32]} h6 {[%emt 0:03:55]} 10. Rfe1 {[%emt 0:04:35]} g5 {[%emt 0:02:32]} 11. Bd2 {[%emt 0:01:32]} Ne4 {[%emt 0:00:26]} 12. Nxe4 {[%emt 0:03:55]} Bxe4 {[%emt 0:00:02]} 13. Qe3 {[%emt 0:04:54]} d5 {[%emt 0:03:53]} 14. Rac1 {[%emt 0:05:51]} e6 {[%emt 0:02:43]} 15. Bb4 {[%emt 0:04:54]} Re8 {[%emt 0:06:52]} 16. Ne5 {[%emt 0:07:04]} Bxg2 {[%emt 0:01:16]} 17. Kxg2 {[%emt 0:00:07]} Nd7 {[%emt 0:08:23]} 18. Bd6 {[%emt 0:03:01]} dxc4 {[%emt 0:01:17]} 19. Rxc4 {[%emt 0:00:33]} Nb6 {[%emt 0:01:16]} 20. Rcc1 {[%emt 0:01:38]} Qd8 {[%emt 0:01:32]} 21. Bc5 {[%emt 0:02:16]} Qd5+ {[%emt 0:04:14]} 22. Kg1 {[%emt 0:02:25]} Qxa2 {[%emt 0:02:34]} 23. b3 {[%emt 0:06:55]} Nd5 {[%emt 0:08:33]} 24. Qf3 {[%emt 0:03:58]} f6 {[%emt 0:01:43]} 25. Nc4 {[%emt 0:01:10]} b6 {[%emt 0:08:35]} 26. Ba3 {[%emt 0:21:06]} b5 {[%emt 0:02:14]} 27. Ra1 {[%emt 0:00:56]} Qc2 {[%emt 0:00:24]} 28. Nd6 {[%emt 0:01:22]} Red8 {[%emt 0:06:00]} 29. e4 {[%emt 0:01:18]} Qc3 {[%emt 0:07:54]} 30. Qxc3 {[%emt 0:01:29]} Nxc3 {[%emt 0:00:02]} 31. Re3 {[%emt 0:04:34]} Bf8 {[%emt 0:09:15]} 32. Rxc3 {[%emt 0:01:07]} Bxd6 {[%emt 0:00:17]} 33. Rxc6 {[%emt 0:00:15]} b4 {[%emt 0:00:57]} 34. Bb2 {[%emt 0:00:32]} Kf7 {[%emt 0:02:19]} 35. Raa6 {[%emt 0:01:14]} Be7 {[%emt 0:01:18]} 36. Rxe6 {[%emt 0:00:59]} Rac8 {[%emt 0:01:44]} 37. d5 {[%emt 0:01:24]} f5 {[%emt 0:01:10]} 38. Rxa7 {[%emt 0:00:58]} Re8 {[%emt 0:00:37]} 39. Bf6 {[%emt 0:00:48]} fxe4 {[%emt 0:00:58]} 40. Raxe7+ {[%emt 0:00:28]} Rxe7 {[%emt 0:00:14]} 41. Bxe7 {[%emt 0:30:31]} Rc1+ {[%emt 0:30:57]} 42. Kg2 {[%emt 0:00:11]} Rb1 {[%emt 0:00:30]} 43. Rxe4 {[%emt 0:00:35]} Rxb3 {[%emt 0:00:34]} 44. Bxb4 {[%emt 0:00:11]} 1-0

[Event "Reykjavik Open 2024"]
[Site "Reykjavik"]
[Date "2024.03.16"]
[Round "3.43"]
[White "Mueller, Magnus"]
[Black "Lohia, Sohum"]
[Result "1/2-1/2"]
[ECO "E49"]
[WhiteElo "2144"]
[BlackElo "2354"]
[Annotator "TA"]
[PlyCount "76"]
[EventDate "2024.03.12"]
[EventCountry "ISL"]
[SourceTitle "playchess.com"]
[Source "ChessBase"]
[SourceQuality "1"]
[TimeControl "40/5400+30:1800+30"]

{[%evp 26,76,22,20,27,18,20,19,120,120,206,202,226,106,102,90,100,47,166,163,177,163,165,97,96,73,157,131,152,70,127,20,8,16,17,17,18,15,12,6,10,0,0,0,0,0,15,0,0,0,7,0,0]} 1. d4 {[%emt 0:08:03]} Nf6 {[%emt 0:00:12]} 2. c4 {[%emt 0:00:33]} e6 {[%emt 0:00:12]} 3. Nc3 {[%emt 0:02:34]} Bb4 {[%emt 0:00:22]} 4. a3 {[%emt 0:00:15]} Bxc3+ {[%emt 0:00:35]} 5. bxc3 {[%emt 0:00:08]} c5 {[%emt 0:02:01]} 6. f3 {[%emt 0:00:22]} d5 {[%emt 0:21:47]} 7. cxd5 {[%emt 0:00:12]} exd5 {[%emt 0:10:43]} 8. e3 {[%emt 0:01:53]} O-O {[%emt 0:09:09]} 9. Bd3 {[%emt 0:00:11]} b6 {[%emt 0:01:45]} 10. Ne2 {[%emt 0:00:12]} Ba6 {[%emt 0:00:44]} 11. O-O {[%emt 0:02:09]} Bxd3 {[%emt 0:00:54]} 12. Qxd3 {[%emt 0:00:08]} Re8 {[%emt 0:01:58]} 13. Ng3 {[%emt 0:00:10]} Nc6 {[%emt 0:00:56]} 14. Bb2 {[%emt 0:08:56]} h5 {[%emt 0:05:54][%cal Bh7h5,Bh5h4][%mdl 32]} 15. e4 {[%emt 0:22:52][%cal Be3e4,Be4e5][%mdl 32] next e5 is good for White.} h4 {[%emt 0:05:32]} 16. Nf5 {[%emt 0:00:17] Threatens to win with e5.} c4 {[%emt 0:20:42]} (16... cxd4 $11 {keeps the balance.} 17. cxd4 dxe4 18. fxe4 Rxe4) 17. Qd2 $16 {[%emt 0:02:25]} ({Much weaker is} 17. Qe2 $6 dxe4 18. fxe4 Rxe4 $11) 17... g6 {[%emt 0:03:55]} (17... Ne7 $16 {keeps fighting.}) 18. e5 $1 $18 {[%emt 0:08:33]} (18. Nxh4 dxe4 19. Rae1 Rc8) ({Don't take} 18. Nh6+ Kg7) 18... Nh5 {[%emt 0:01:49] [#]} 19. Nd6 {[%emt 0:03:04]} (19. Qh6 $1 $18) 19... Re6 $16 {[%emt 0:00:42]} 20. f4 {[%emt 0:06:10] f5 would now be deadly. White is more active.} f5 {[%emt 0:00:44]} 21. Qf2 {[%emt 0:02:49]} (21. Rf3 $16) 21... Ng7 {[%emt 0:02:13]} (21... Rxd6 $14 22. exd6 Kg7) 22. a4 $18 {[%emt 0:06:03]} Ne8 {[%emt 0:01:31]} 23. Nxe8 {[%emt 0:03:07]} Rxe8 {[%emt 0:00:10] [#]} 24. g4 {[%emt 0:00:08]} hxg3 $16 {[%emt 0:01:18]} 25. Qxg3 {[%emt 0:00:06]} Kf7 {[%emt 0:00:54]} (25... Kg7 $142) 26. Ba3 {[%emt 0:00:55]} Rg8 {[%emt 0:01:44]} 27. Kh1 {[%emt 0:00:59]} ({White should play} 27. Rae1 $16 {e6+ is the strong threat.} Ke6 28. Bd6) 27... Ke6 {[%emt 0:02:27]} (27... Qc8 $14) 28. Rab1 {[%emt 0:00:59]} ({White should try} 28. Rg1 $16) 28... g5 $11 {[%emt 0:01:41] The position is equal.} 29. fxg5 {[%emt 0:00:34]} Qxg5 {[%emt 0:00:45]} 30. Qf3 {[%emt 0:00:07] Threatening Rb5.} Rh8 $1 {[%emt 0:00:57][%cal Oh8h2] ( -> ...Rxh2+!)} 31. Rf2 {[%emt 0:01:41] And now Rg1 would win.} Rag8 $1 {[%emt 0:00:25]} 32. Rbf1 {[%emt 0:05:36]} Rh5 {[%emt 0:00:55]} 33. Rg2 {[%emt 0:06:23] Dancing on a razor blade.} (33. Bc1 {keeps more tension.} Qg4 34. Rg2 Qxg2+ 35. Qxg2 Rxg2 36. Kxg2 a6 37. Ba3) 33... Qxg2+ {[%emt 0:00:30]} 34. Qxg2 {[%emt 0:00:06]} Rxg2 {[%emt 0:00:01]} 35. Kxg2 {[%emt 0:00:09]} Rg5+ {[%emt 0:00:37]} 36. Kh3 {[%emt 0:02:36]} Rh5+ {[%emt 0:00:48]} 37. Kg2 {[%emt 0:00:06]} Rg5+ {[%emt 0:00:08]} 38. Kh3 {[%emt 0:00:05]} Rh5+ {[%emt 0:01:08] Black defended with fortune.   Weighted Error Value: White=0.21 (precise) /Black=0.26 (precise) .  Mistake:       	White=5     	Black=5      OK:         	White=7     	Black=4      Best:        	White=1     	Black=3      Strong:       	White=1     	Black=2} 1/2-1/2

[Event "Reykjavik Open 2024"]
[Site "Reykjavik"]
[Date "2024.03.16"]
[Round "3.44"]
[White "Roberts, Tallulah"]
[Black "Manenschijn, Wouter"]
[Result "0-1"]
[ECO "C88"]
[WhiteElo "1671"]
[BlackElo "1864"]
[Annotator "NA RC"]
[PlyCount "88"]
[EventDate "2024.03.12"]
[EventCountry "ISL"]
[SourceTitle "playchess.com"]
[Source "ChessBase"]
[SourceQuality "1"]
[TimeControl "40/5400+30:1800+30"]

1. e4 {[%emt 0:00:03]} e5 {[%emt 0:00:22]} 2. Nf3 {[%emt 0:00:04]} Nc6 {[%emt 0:00:07]} 3. Bb5 {[%emt 0:00:04]} a6 {[%emt 0:00:19]} 4. Ba4 {[%emt 0:00:02]} Nf6 {[%emt 0:00:17]} 5. d3 {[%emt 0:00:04]} b5 {[%emt 0:01:13]} 6. Bb3 {[%emt 0:00:09]} Be7 {[%emt 0:01:58]} 7. c3 {[%emt 0:01:31]} O-O {[%emt 0:01:00]} 8. O-O {[%emt 0:01:09]} d6 {[%emt 0:00:18]} 9. Re1 {[%emt 0:01:42]} Na5 {[%emt 0:00:58]} 10. Bc2 {[%emt 0:00:44]} c5 {[%emt 0:00:13]} 11. a4 {[%emt 0:03:23]} Bb7 {[%emt 0:14:02]} 12. Nbd2 {[%emt 0:07:27]} Qc7 {[%emt 0:01:38]} 13. Nf1 {[%emt 0:04:20]} Rfe8 {[%emt 0:03:03]} 14. Ng3 {[%emt 0:06:39]} Bf8 {[%emt 0:01:37]} 15. Bg5 {[%emt 0:05:03]} Nd7 {[%emt 0:03:06]} 16. Nf5 {[%emt 0:05:24]} d5 {[%emt 0:05:01]} 17. axb5 {[%emt 0:10:22]} axb5 {[%emt 0:08:12]} 18. Ne3 {[%emt 0:13:25]} d4 {[%emt 0:03:19]} 19. cxd4 {[%emt 0:06:49]} cxd4 {[%emt 0:02:05]} 20. Nf5 {[%emt 0:03:33]} Qb6 {[%emt 0:08:42]} 21. Rc1 {[%emt 0:03:33]} b4 {[%emt 0:05:22]} 22. Ba4 {[%emt 0:04:08]} Bc6 {[%emt 0:01:26]} 23. Bxc6 {[%emt 0:01:55]} Nxc6 {[%emt 0:00:07]} 24. Nd2 {[%emt 0:01:34]} Na5 {[%emt 0:01:56]} 25. Rf1 {[%emt 0:03:27]} Rac8 {[%emt 0:16:07]} 26. Qg4 {[%emt 0:02:37]} Nc5 {[%emt 0:03:11]} 27. Qg3 {[%emt 0:07:57]} Qg6 {[%emt 0:00:48]} 28. Nh4 {[%emt 0:03:23]} Qa6 {[%emt 0:04:43]} 29. Ra1 {[%emt 0:02:00]} Ra8 {[%emt 0:07:20]} 30. Rfd1 {[%emt 0:00:30]} Qxd3 {[%emt 0:01:22]} 31. Qxd3 {[%emt 0:01:16]} Nxd3 {[%emt 0:00:04]} 32. Nhf3 {[%emt 0:01:39]} f6 {[%emt 0:00:59]} 33. Bh4 {[%emt 0:00:04]} Nxb2 {[%emt 0:00:56]} 34. Rdb1 {[%emt 0:00:13]} Nbc4 {[%emt 0:01:19]} 35. Nxc4 {[%emt 0:00:09]} Nxc4 {[%emt 0:00:04]} 36. Ne1 {[%emt 0:00:44]} Nd2 {[%emt 0:00:53]} 37. Rxa8 {[%emt 0:00:34]} Rxa8 {[%emt 0:00:16]} 38. Rd1 {[%emt 0:01:01]} Nxe4 {[%emt 0:00:17]} 39. f3 {[%emt 0:00:41]} Nc3 {[%emt 0:00:12]} 40. Rd2 {[%emt 0:00:27]} Ra2 {[%emt 0:00:52]} 41. Rxa2 {[%emt 0:01:43]} Nxa2 {[%emt 0:00:05]} 42. Nd3 {[%emt 0:00:13]} b3 {[%emt 0:00:57]} 43. Nb2 {[%emt 0:00:56]} Ba3 {[%emt 0:00:30]} 44. Nc4 {[%emt 0:00:17]} Bc1 {[%emt 0:00:13]} 0-1